fUST/lending_fUST_20250503
["ID","MTS","AMOUNT","RATE_DAILY","PERIOD"]
[359715386,1746274251625,-2400.0,0.00031751,5]
[359715387,1746274251635,-400.0,0.0003178,5]
[359715388,1746274251645,-400.0,0.0003178,5]
[359715389,1746274251654,-400.0,0.0003178,5]
[359715390,1746274251664,-611.0,0.00031781,2]
[359715391,1746274251673,-357.7,0.000318,30]
[359715392,1746274251683,-1017.17,0.000318,31]
[359715393,1746274251693,-1017.17,0.000318,31]
[359715394,1746274251702,-1017.17,0.000318,31]
[359715395,1746274251712,-1017.17,0.000318,31]
[359715396,1746274251721,-1017.17,0.000318,31]
[359715397,1746274251730,-1017.17,0.000318,31]
[359715398,1746274251740,-1017.17,0.000318,31]
[359715399,1746274251750,-1017.17,0.000318,31]
[359715400,1746274251760,-1017.17,0.000318,31]
[359715401,1746274251769,-1017.17,0.000318,31]
[359715402,1746274251779,-1017.17,0.000318,31]
[359715403,1746274251789,-1017.17,0.000318,31]
[359715404,1746274251800,-1017.17,0.000318,31]
[359715405,1746274251810,-1017.17,0.000318,31]
[359715406,1746274251820,-1017.17,0.000318,31]
[359715407,1746274251831,-1017.17,0.000318,31]
[359715408,1746274251842,-10000.0,0.0003187,2]
[359715409,1746274251852,-5000.0,0.00031943,2]
[359715410,1746274251862,-556.219277,0.00031963,120]
[359715411,1746274251872,-200.0,0.00032,120]
[359715412,1746274251881,-247.04,0.00032,2]
[359715413,1746274251891,-165.49,0.00032,10]
[359715414,1746274251899,-160.0,0.00032,37]
[359715415,1746274251909,-50125.66518456,0.00032,30]
[359715416,1746274251919,-313.6679601,0.00032,30]
[359715417,1746274251929,-400.0,0.00032054,5]
[359715418,1746274251938,-400.0,0.00032054,5]
[359715419,1746274251948,-400.0,0.00032054,5]
[359715420,1746274251958,-611.0,0.00032055,2]
[359715421,1746274251968,-950.0,0.00032056,5]
[359715422,1746274251978,-500.0,0.00032124,7]
[359715423,1746274251988,-8732.51632419,0.00032314,26]
[359715424,1746274251997,-210.12948291,0.00032328,5]
[359715425,1746274252009,-400.0,0.00032328,5]
[359715426,1746274252019,-400.0,0.00032328,5]
[359715427,1746274252029,-611.0,0.00032329,2]
[359715428,1746274252039,-400.0,0.00032602,5]
[359715429,1746274252049,-400.0,0.00032602,5]
[359715430,1746274252059,-611.0,0.00032602,2]
[359715431,1746274252069,-200.0,0.00032603,2]
[359715432,1746274252078,-1050.0,0.00032604,5]
[359715433,1746274252089,-2258.0,0.0003272,2]
[359715434,1746274252099,-10000.0,0.0003287,2]
[359715435,1746274252109,-155.0,0.00032876,2]
[359715436,1746274252119,-400.0,0.00032876,5]
[359715437,1746274252129,-400.0,0.00032876,5]
[359715438,1746274252139,-433.59845908,0.00032876,2]
[359715439,1746274252148,-565.34912609,0.00032876,2]
[359715440,1746274252158,-500.0,0.00032876,2]
[359715441,1746274252167,-500.0,0.00032876,2]
[359715442,1746274252177,-500.0,0.00032876,2]
[359715443,1746274252187,-247.36125868,0.00032876,2]
[359715444,1746274252197,-611.0,0.00032876,2]
[359715445,1746274252206,-166.0,0.00032877,2]
[359715446,1746274252216,-255.21442326,0.00032877,2]
[359715447,1746274252226,-500.0,0.00032877,5]
[359715448,1746274252235,-1000.0,0.00032877,5]
[359715449,1746274252246,-151.0,0.00032877,9]
[359715450,1746274252256,-5267.07,0.000329,7]
[359715451,1746274252266,-1000.92125178,0.00033,120]
[359715452,1746274252275,-302.33,0.00033,40]
[359715453,1746274252285,-95091.89358873,0.00033,30]
[359715454,1746274252295,-202.40777508,0.00033,21]
[359715455,1746274252305,-182.16284668,0.00033,7]
[359715456,1746274252315,-275.0,0.00033,2]
[359715457,1746274252326,-8732.51632419,0.00033003,28]
[359715458,1746274252336,-400.0,0.0003315,5]
[359715459,1746274252346,-400.0,0.0003315,5]
[359715460,1746274252356,-611.0,0.0003315,2]
[359715461,1746274252366,-182.93377789,0.00033151,9]
[359715462,1746274252376,-1014.50211943,0.00033152,5]
[359715463,1746274252386,-1500.0,0.00033165,2]
[359715464,1746274252396,-152.38092783,0.00033377,2]
[359715465,1746274252405,-2700.0,0.00033394,5]
[359715466,1746274252415,-207.35658,0.000334,120]
[359715467,1746274252424,-203.76845,0.000334,120]
[359715468,1746274252434,-358.72602157,0.00033424,5]
[359715469,1746274252444,-400.0,0.00033424,5]
[359715470,1746274252454,-611.0,0.00033424,2]
[359715471,1746274252465,-8732.51632419,0.00033693,29]
[359715472,1746274252475,-516.81152653,0.00033698,5]
[359715473,1746274252485,-619.29548248,0.00033698,2]
[359715474,1746274252495,-5267.07,0.000337,7]
[359715475,1746274252504,-5747.22,0.000337,7]
[359715476,1746274252514,-500.0,0.00033768,60]
[359715477,1746274252523,-10000.0,0.0003387,2]
[359715478,1746274252534,-5000.0,0.00033943,2]
[359715479,1746274252543,-4377.32,0.00034,30]
[359715480,1746274252553,-200.0,0.00034,120]
[359715481,1746274252563,-500.0,0.00034,3]
[359715482,1746274252573,-1034.59322545,0.00034247,5]
[359715483,1746274252583,-200.0,0.00034263,120]
[359715484,1746274252592,-8732.51632419,0.00034383,30]
[359715485,1746274252602,-5267.07,0.000345,7]
[359715486,1746274252613,-1333.0,0.00034849,120]
[359715487,1746274252622,-500.0,0.00034864,60]
[359715488,1746274252632,-3148.15812646,0.0003487,4]
[359715489,1746274252642,-10000.0,0.0003487,2]
[359715490,1746274252651,-264.43294697,0.00035,30]
[359715491,1746274252661,-500.0,0.00035,3]
[359715492,1746274252670,-500.0,0.00035,4]
[359715493,1746274252680,-1000.0,0.00035,120]
[359715494,1746274252689,-10602.62749444,0.00035,2]
[359715495,1746274252699,-4229.095,0.00035,30]
[359715496,1746274252709,-210.49317624,0.00035,30]
[359715497,1746274252718,-204.872,0.00035,5]
[359715498,1746274252727,-204.872,0.00035,5]
[359715499,1746274252737,-1100.13,0.00035,30]
[359715500,1746274252747,-309.0375,0.00035,5]
[359715501,1746274252757,-309.0375,0.00035,5]
[359715502,1746274252767,-112337.32076489,0.00035,2]
[359715503,1746274252776,-3000.0,0.00035038,5]
[359715504,1746274252785,-267.87480599,0.00035068,3]
[359715505,1746274252795,-8732.51632419,0.00035072,32]
[359715506,1746274252804,-200.0,0.00035367,120]
[359715507,1746274252814,-152.38092783,0.00035369,2]
[359715508,1746274252823,-4377.32,0.000354,30]
[359715509,1746274252833,-5267.07,0.000354,7]
[359715510,1746274252843,-155.0,0.00035615,2]
[359715511,1746274252852,-151.0,0.00035616,9]
[359715512,1746274252861,-189.94724759,0.00035616,7]
[359715513,1746274252871,-443.21024437,0.00035616,7]
[359715514,1746274252881,-3162.0,0.00035644,2]
[359715515,1746274252891,-1500.0,0.00035716,5]
[359715516,1746274252901,-1500.0,0.00035742,5]
[359715517,1746274252911,-1500.0,0.00035742,2]
[359715518,1746274252921,-1500.0,0.00035742,5]
[359715519,1746274252930,-682.66854913,0.00035742,5]
[359715520,1746274252940,-8732.51632419,0.00035762,33]
[359715521,1746274252949,-1500.0,0.00035804,5]
[359715522,1746274252960,-1500.0,0.00035804,2]
[359715523,1746274252969,-182.07561,0.00035806,2]
[359715524,1746274252979,-10000.0,0.0003587,2]
[359715525,1746274252989,-208.1819391,0.0003589,9]
[359715526,1746274253000,-2000.0,0.0003589,120]
[359715527,1746274253014,-1500.0,0.00035892,5]
[359715528,1746274253023,-1260.64,0.000359,30]
[359715529,1746274253033,-200.0,0.00035931,14]
[359715530,1746274253043,-200.0,0.00035931,14]
[359715531,1746274253054,-500.0,0.0003596,60]
[359715532,1746274253064,-200.0,0.00035998,120]
[359715533,1746274253074,-3300.0,0.00036,120]
[359715534,1746274253084,-200.0,0.00036,120]
[359715535,1746274253094,-329.9769955,0.00036,30]
[359715536,1746274253104,-230.0,0.00036,10]
[359715537,1746274253114,-275.0,0.00036,2]
[359715538,1746274253124,-5267.07,0.000361,7]
[359715539,1746274253134,-2000.0,0.00036164,120]
[359715540,1746274253143,-51114.35,0.000362,30]
[359715541,1746274253153,-202.33863901,0.0003621,2]
[359715542,1746274253163,-263.18491532,0.0003624,2]
[359715543,1746274253173,-4377.32,0.000364,30]
[359715544,1746274253183,-2000.0,0.00036438,120]
[359715545,1746274253193,-8732.51632419,0.00036452,34]
[359715546,1746274253202,-556.219277,0.0003653,120]
[359715547,1746274253213,-2665.1827793,0.00036682,5]
[359715548,1746274253222,-2000.0,0.00036712,120]
[359715549,1746274253232,-680.51,0.00036714,72]
[359715550,1746274253242,-179.53910152,0.00036822,2]
[359715551,1746274253252,-680.51,0.00036864,42]
[359715552,1746274253262,-10000.0,0.0003687,2]
[359715553,1746274253272,-11566.38605855,0.00036898,120]
[359715554,1746274253282,-5267.07,0.000369,7]
[359715555,1746274253291,-2000.0,0.00036986,120]
[359715556,1746274253301,-50000.0,0.00037,5]
[359715557,1746274253311,-680.51,0.00037014,74]
[359715558,1746274253320,-500.0,0.00037056,60]
[359715559,1746274253330,-8732.51632419,0.00037141,36]
[359715560,1746274253340,-680.51,0.00037164,74]
[359715561,1746274253349,-2000.0,0.0003726,120]
[359715562,1746274253360,-1260.64,0.000373,30]
[359715563,1746274253370,-680.51,0.00037314,77]
[359715564,1746274253379,-152.38092783,0.00037362,2]
[359715565,1746274253390,-1000.0,0.00037454,120]
[359715566,1746274253400,-680.51,0.00037464,37]
[359715567,1746274253410,-4377.32,0.000375,30]
[359715568,1746274253420,-150.0,0.000375,112]
[359715569,1746274253431,-2000.0,0.00037534,120]
[359715570,1746274253444,-5000.0,0.000376,2]
[359715571,1746274253454,-680.51,0.00037614,78]
[359715572,1746274253464,-680.51,0.00037764,84]
[359715573,1746274253474,-1008.3124518,0.000378,2]
[359715574,1746274253484,-2000.0,0.00037808,120]
[359715575,1746274253495,-8732.51632419,0.00037831,37]
[359715576,1746274253505,-10000.0,0.0003787,2]
[359715577,1746274253515,-680.51,0.00037914,78]
[359715578,1746274253525,-1000.0,0.00038,15]
[359715579,1746274253535,-2000.0,0.00038,120]
[359715580,1746274253545,-2000.0,0.00038,120]
[359715581,1746274253555,-2000.0,0.00038,120]
[359715582,1746274253565,-2000.0,0.00038,120]
[359715583,1746274253575,-2000.0,0.00038,120]
[359715584,1746274253584,-2000.0,0.00038,120]
[359715585,1746274253594,-1275.10545025,0.00038,120]
[359715586,1746274254060,-29.90063859,0.00019853,2]
[359716886,1746275031290,-157.0,0.00019,2]
[359716887,1746275031315,-24900.0,0.00019219,2]
[359716888,1746275031336,-1037.8516432,0.00019419,2]
[359716889,1746275031356,-5537.4689309,0.00019428,2]
[359716890,1746275031376,-191.37972229,0.00019435,2]
[359716891,1746275031398,-300.0,0.00019533,2]
[359716892,1746275031417,-5500.29970361,0.00019534,2]
[359716908,1746275227111,-150.91198263,0.00019534,2]
[359716909,1746275240124,-983.73924096,0.00019534,2]
[359716910,1746275240148,-300.0,0.00019579,2]
[359716911,1746275240169,-182.16284668,0.0001958,2]
[359716912,1746275240191,-160.0,0.0001958,2]
[359716913,1746275240212,-160.0,0.0001958,2]
[359716914,1746275240233,-421.66712248,0.0001958,2]
[359716915,1746275240254,-841.47485993,0.0001958,2]
[359716916,1746275240275,-160.0,0.0001958,2]
[359716917,1746275240297,-121.54416559,0.00019993,2]
[359716918,1746275254137,-38.45583441,0.00019993,2]
[359716919,1746275254160,-500.0,0.00020633,2]
[359716920,1746275254182,-500.0,0.00020633,2]
[359716921,1746275254205,-400.0,0.00020709,2]
[359716922,1746275254229,-498.27,0.00020709,2]
[359716923,1746275254259,-500.0,0.00020709,2]
[359716924,1746275254289,-500.0,0.00020709,2]
[359716925,1746275254319,-500.0,0.00020709,2]
[359716926,1746275254349,-500.0,0.00020709,2]
[359716927,1746275254381,-500.0,0.00020709,2]
[359716928,1746275254415,-500.0,0.00020709,2]
[359716929,1746275254447,-500.0,0.00020709,2]
[359716930,1746275254478,-500.0,0.00020709,2]
[359716931,1746275254509,-500.0,0.00020709,2]
[359716932,1746275254540,-500.0,0.00020709,2]
[359716933,1746275254570,-500.0,0.00020709,2]
[359716934,1746275254601,-500.0,0.00020709,2]
[359716935,1746275254631,-223.90682527,0.00020709,2]
[359716936,1746275282446,300.0,0.00017999,2]
[359716941,1746275312631,500.0,0.00017999,2]
[359716942,1746275312660,500.0,0.00017999,2]
[359716943,1746275312711,500.0,0.00017999,2]
[359716944,1746275312753,500.0,0.00017999,2]
[359716945,1746275312781,300.53703792,0.00017999,2]
[359716946,1746275312825,500.0,0.00017999,2]
[359716947,1746275312867,500.0,0.00017999,2]
[359716948,1746275312926,500.0,0.00017999,2]
[359716949,1746275312967,308.48385726,0.00017999,2]
[359716950,1746275313030,500.0,0.00017999,2]
[359716958,1746275333280,400.0,0.00017999,2]
[359716959,1746275342490,300.0,0.00017999,2]
[359716963,1746275358093,-392.0,0.00018,2]
[359716964,1746275361317,-41578.28391855,0.00018,2]
[359716965,1746275364190,-447.74599181,0.00018,2]
[359716966,1746275364214,-511.70989946,0.00018273,2]
[359716967,1746275364233,-318.97282877,0.00019205,5]
[359716968,1746275364967,500.0,0.00017999,2]
[359716969,1746275364997,637.40428315,0.00017999,2]
[359716970,1746275365668,650.0805587,0.00017999,2]
[359716971,1746275365704,650.0805587,0.00017999,2]
[359716972,1746275365738,650.0805587,0.00017999,2]
[359716973,1746275365771,650.0805587,0.00017999,2]
[359716974,1746275365805,650.0805587,0.00017999,2]
[359716975,1746275365840,650.0805587,0.00017999,2]
[359716976,1746275365881,650.0805587,0.00017999,2]
[359716977,1746275365915,650.0805587,0.00017999,2]
[359716978,1746275365951,650.0805587,0.00017999,2]
[359716979,1746275365988,650.0805587,0.00017999,2]
[359716980,1746275366025,650.0805587,0.00017999,2]
[359716981,1746275366065,650.0805587,0.00017999,2]
[359716982,1746275366101,650.0805587,0.00017999,2]
[359716983,1746275366134,650.0805587,0.00017999,2]
[359716984,1746275366169,650.0805587,0.00017999,2]
[359716985,1746275366203,650.0805587,0.00017999,2]
[359716986,1746275366240,650.0805587,0.00017999,2]
[359716987,1746275366275,650.0805587,0.00017999,2]
[359716988,1746275366312,650.0805587,0.00017999,2]
[359716989,1746275366348,650.0805587,0.00017999,2]
[359716990,1746275366382,650.0805587,0.00017999,2]
[359716991,1746275366417,650.0805587,0.00017999,2]
[359716992,1746275366454,650.0805587,0.00017999,2]
[359716993,1746275366488,650.0805587,0.00017999,2]
[359716994,1746275366532,650.0805587,0.00017999,2]
[359716995,1746275366570,650.0805587,0.00017999,2]
[359716996,1746275366603,650.0805587,0.00017999,2]
[359716997,1746275366638,650.0805587,0.00017999,2]
[359716998,1746275366671,650.0805587,0.00017999,2]
[359716999,1746275366780,650.0805587,0.00017999,2]
[359717000,1746275366815,650.0805587,0.00017999,2]
[359717001,1746275366855,650.0805587,0.00017999,2]
[359717002,1746275366888,650.0805587,0.00017999,2]
[359717003,1746275366921,650.0805587,0.00017999,2]
[359717004,1746275366957,650.0805587,0.00017999,2]
[359717005,1746275366990,650.0805587,0.00017999,2]
[359717006,1746275367022,650.0805587,0.00017999,2]
[359717007,1746275367057,650.0805587,0.00017999,2]
[359717008,1746275367095,650.0805587,0.00017999,2]
[359717009,1746275367128,650.0805587,0.00017999,2]
[359717010,1746275367161,650.0805587,0.00017999,2]
[359717011,1746275367193,650.0805587,0.00017999,2]
[359717012,1746275367260,650.0805587,0.00017999,2]
[359717013,1746275367333,650.0805587,0.00017999,2]
[359717014,1746275367369,650.0805587,0.00017999,2]
[359717015,1746275367523,650.0805587,0.00017999,2]
[359717016,1746275367577,650.0805587,0.00017999,2]
[359717017,1746275367734,650.0805587,0.00017999,2]
[359717018,1746275367794,650.0805587,0.00017999,2]
[359717020,1746275376852,657.38483464,0.00017999,2]
[359717021,1746275376887,500.0,0.00017999,2]
[359717022,1746275376925,657.38483464,0.00017999,2]
[359717023,1746275376964,657.38483464,0.00017999,2]
[359717024,1746275377005,657.38483464,0.00017999,2]
[359717025,1746275377046,657.38483464,0.00017999,2]
[359717026,1746275377084,657.38483464,0.00017999,2]
[359717027,1746275377121,657.38483464,0.00017999,2]
[359717028,1746275377160,657.38483464,0.00017999,2]
[359717029,1746275377201,657.38483464,0.00017999,2]
[359717030,1746275377238,657.38483464,0.00017999,2]
[359717031,1746275377275,657.38483464,0.00017999,2]
[359717032,1746275377315,657.38483464,0.00017999,2]
[359717033,1746275377356,657.38483464,0.00017999,2]
[359717034,1746275377392,657.38483464,0.00017999,2]
[359717035,1746275377431,657.38483464,0.00017999,2]
[359717036,1746275377475,657.38483464,0.00017999,2]
[359717037,1746275377511,657.38483464,0.00017999,2]
[359717038,1746275377550,657.38483464,0.00017999,2]
[359717039,1746275377589,657.38483464,0.00017999,2]
[359717040,1746275377630,657.38483464,0.00017999,2]
[359717041,1746275377668,657.38483464,0.00017999,2]
[359717042,1746275377704,657.38483464,0.00017999,2]
[359717043,1746275377740,657.38483464,0.00017999,2]
[359717044,1746275377772,657.38483464,0.00017999,2]
[359717045,1746275377808,657.38483464,0.00017999,2]
[359717046,1746275377845,657.38483464,0.00017999,2]
[359717047,1746275377877,657.38483464,0.00017999,2]
[359717048,1746275377914,657.38483464,0.00017999,2]
[359717049,1746275377953,657.38483464,0.00017999,2]
[359717050,1746275377989,657.38483464,0.00017999,2]
[359717051,1746275378023,657.38483464,0.00017999,2]
[359717052,1746275378055,657.38483464,0.00017999,2]
[359717053,1746275378087,657.38483464,0.00017999,2]
[359717054,1746275378120,657.38483464,0.00017999,2]
[359717055,1746275378152,657.38483464,0.00017999,2]
[359717056,1746275378184,657.38483464,0.00017999,2]
[359717057,1746275378216,657.38483464,0.00017999,2]
[359717058,1746275378252,657.38483464,0.00017999,2]
[359717059,1746275378284,657.38483464,0.00017999,2]
[359717060,1746275378317,657.38483464,0.00017999,2]
[359717061,1746275378351,657.38483464,0.00017999,2]
[359717062,1746275378384,657.38483464,0.00017999,2]
[359717063,1746275378423,657.38483464,0.00017999,2]
[359717064,1746275378468,657.38483464,0.00017999,2]
[359717065,1746275378502,657.38483464,0.00017999,2]
[359717066,1746275378534,657.38483464,0.00017999,2]
[359717067,1746275378567,657.38483464,0.00017999,2]
[359717068,1746275378600,657.38483464,0.00017999,2]
[359717069,1746275378637,657.38483464,0.00017999,2]
[359717070,1746275378674,657.38483464,0.00017999,2]
[359717071,1746275378706,657.38483464,0.00017999,2]
[359717072,1746275378739,657.38483464,0.00017999,2]
[359717073,1746275378794,657.38483464,0.00017999,2]
[359717074,1746275378832,657.38483464,0.00017999,2]
[359717075,1746275378870,657.38483464,0.00017999,2]
[359717076,1746275379050,657.38483464,0.00017999,2]
[359717077,1746275379109,657.38483464,0.00017999,2]
[359717079,1746275383826,500.0,0.00017999,2]
[359717080,1746275383859,324.57244182,0.00017999,2]
[359717081,1746275383890,500.0,0.00017999,2]
[359717082,1746275383924,500.0,0.00017999,2]
[359717083,1746275383959,500.0,0.00017999,2]
[359717084,1746275383988,500.0,0.00017999,2]
[359717085,1746275390950,500.0,0.00017999,2]
[359717086,1746275390982,455.0,0.00017999,2]
[359717087,1746275391012,500.0,0.00017999,2]
[359717088,1746275391071,500.0,0.00017999,2]
[359717089,1746275391101,500.0,0.00017999,2]
[359717090,1746275391181,500.0,0.00017999,2]
[359717091,1746275391259,500.0,0.00017999,2]
[359717092,1746275391293,500.0,0.00017999,2]
[359717093,1746275391331,500.0,0.00017999,2]
[359717095,1746275402510,400.0,0.00017999,2]
[359717096,1746275409864,400.0,0.00017999,2]
[359717097,1746275411593,400.0,0.00017999,2]
[359717098,1746275413306,400.0,0.00017999,2]
[359717099,1746275418671,400.0,0.00017999,2]
[359717100,1746275420457,400.0,0.00017999,2]
[359717101,1746275430396,-262.12163541,0.00018273,2]
[359717102,1746275431380,293.0,0.00017999,2]
[359717149,1746275432107,-137.87836459,0.00018273,2]
[359717151,1746275432117,-465.84359501,0.00018273,2]
[359717153,1746275432127,-191.27,0.00018273,2]
[359717156,1746275432136,-400.0,0.00018547,2]
[359717158,1746275432146,-546.29,0.00018821,2]
[359717160,1746275432155,-39.50884595,0.00019205,5]
[359717162,1746275432164,-160.0,0.00019981,2]
[359717164,1746275432174,-182.16284668,0.00019981,2]
[359717166,1746275432184,-841.47485993,0.00019993,2]
[359717168,1746275432193,-421.66712248,0.00019993,2]
[359717170,1746275432203,-160.0,0.00019993,2]
[359717172,1746275432213,-300.0,0.00020609,2]
[359717174,1746275432223,-8600.97718619,0.0002061,2]
[359717176,1746275432233,-400.0,0.00020709,2]
[359717178,1746275432243,-400.0,0.00020709,2]
[359717180,1746275432252,-400.0,0.0002071,2]
[359717182,1746275432262,-400.0,0.0002071,2]
[359717184,1746275432271,-400.0,0.0002071,2]
[359717186,1746275432280,-400.0,0.0002071,2]
[359717188,1746275432290,-220.80121063,0.0002071,2]
[359717190,1746275432299,-400.0,0.0002071,2]
[359717192,1746275432308,-400.0,0.0002071,2]
[359717194,1746275432317,-409.39,0.0002071,2]
[359717196,1746275432326,-400.0,0.0002071,2]
[359717198,1746275432336,-400.0,0.00020711,2]
[359717200,1746275432345,-514.93,0.00020711,2]
[359717202,1746275432355,-526.14438053,0.00020713,2]
[359717204,1746275432365,-400.0,0.00020713,2]
[359717206,1746275432374,-400.0,0.00020713,2]
[359717208,1746275432384,-72454.7692145,0.00020732,2]
[359717210,1746275432393,-500.0,0.00020773,2]
[359717212,1746275432403,-873.25163268,0.000209,4]
[359717214,1746275432412,-400.0,0.00020983,2]
[359717216,1746275432422,-400.0,0.00020984,2]
[359717218,1746275432431,-260.65553593,0.00020985,2]
[359717220,1746275432441,-1149.44,0.00021,2]
[359717222,1746275432450,-155.0,0.00021,2]
[359717225,1746275432470,-157.72,0.00021,2]
[359717227,1746275432480,-9512.16122278,0.00021,5]
[359717229,1746275432490,-400.0,0.00021257,2]
[359717231,1746275432499,-400.0,0.00021258,2]
[359717233,1746275432510,-400.0,0.00021531,2]
[359717235,1746275432519,-277.5,0.00021532,2]
[359717237,1746275432530,-873.25163241,0.00021555,5]
[359717239,1746275432540,-500.0,0.0002166,2]
[359717241,1746275432550,-500.0,0.0002166,2]
[359717243,1746275432560,-351.96936141,0.00021805,2]
[359717245,1746275432570,-873.25163241,0.0002221,6]
[359717247,1746275432580,-420.0,0.00022427,2]
[359717249,1746275432590,-403.0,0.00022512,2]
[359717251,1746275432599,-873.25163241,0.00022866,8]
[359717253,1746275432610,-451.54326425,0.00023,5]
[359717256,1746275432620,-873.25163241,0.00023521,9]
[359717258,1746275432630,-481.32562716,0.00023855,2]
[359717260,1746275432639,-1677.94643934,0.00024,2]
[359717262,1746275432650,-873.25163241,0.00024176,10]
[359717264,1746275432660,-570.0,0.00024405,2]
[359717266,1746275432670,-250.0,0.000247,2]
[359717268,1746275432680,-1000.0,0.000247,2]
[359717270,1746275432691,-1356.42608659,0.0002479,2]
[359717272,1746275432702,-873.25163241,0.00024831,12]
[359717274,1746275432711,-500.61736159,0.00024873,2]
[359717276,1746275432721,-57222.85769636,0.0002488,2]
[359717279,1746275432735,-142777.14230364,0.0002488,2]
[359717281,1746275432745,-784.22,0.0002489,3]
[359717283,1746275432754,-25853.71592475,0.000249,2]
[359717285,1746275432767,-11580.18559047,0.000249,2]
[359717287,1746275432780,-24625.27621941,0.000249,2]
[359717386,1746275438102,-16.76799807,0.000249,2]
[359717519,1746275439593,-66913.20253177,0.000249,2]
[359717521,1746275439605,-678.22046725,0.000249,2]
[359717523,1746275439616,-813.06142564,0.000249,2]
[359717525,1746275439628,-522.71292882,0.000249,2]
[359717528,1746275439639,-9356.1,0.000249,2]
[359717530,1746275439650,-12813.3840853,0.000249,2]
[359717535,1746275439689,313.84138242,0.00017999,2]
[359717852,1746275443156,-1034.5,0.00021,2]
[359717854,1746275443166,-59832.16699006,0.000249,2]
[359717966,1746275446070,-3293.86905677,0.000249,2]
[359717967,1746275446083,-382.748628,0.000249,2]
[359717968,1746275446175,-397.44194169,0.000249,2]
[359717979,1746275451134,-311.3071732,0.00020711,2]
[359717980,1746275474100,348.71264714,0.00017999,2]
[359717981,1746275529097,400.0,0.00017999,2]
[359717982,1746275540661,400.0,0.00017999,2]
[359717984,1746275551945,400.0,0.00017999,2]
[359717985,1746275594017,400.0,0.00017999,2]
[359717986,1746275608867,-1000.0,0.00018173,2]
[359717987,1746275608890,-335.02,0.00018273,2]
[359717988,1746275608912,-419.94,0.00018273,2]
[359717989,1746275608933,-438.52,0.00018273,2]
[359717990,1746275608955,-400.0,0.00020709,2]
[359717991,1746275608976,-30.20605857,0.00020711,2]
[359717992,1746275608997,-400.0,0.00020711,2]
[359717993,1746275609017,-270.31394143,0.00020711,2]
[359717994,1746275618369,528.46,0.00017999,2]
[359717995,1746275625306,400.0,0.00017999,2]
[359717998,1746275651421,432.92,0.00017999,2]
[359717999,1746275654006,400.0,0.00017999,2]
[359718001,1746275675695,-300.0,0.00018273,2]
[359718002,1746275702604,514.93,0.00017999,2]
[359718003,1746275733098,400.0,0.00017999,2]
[359718004,1746275769030,400.0,0.00017999,2]
[359718005,1746275799934,400.0,0.00017999,2]
[359718007,1746275905324,471.9,0.00017999,2]
[359718008,1746275959271,418.86,0.00017999,2]
[359718009,1746276001672,-4771.5412251,0.00018173,2]
[359718010,1746276001694,-169.15,0.00018273,2]
[359718011,1746276001717,-547.27,0.00018273,2]
[359718012,1746276001739,-12.0387749,0.00018273,2]
[359718015,1746276081228,400.0,0.00017999,2]
[359718016,1746276083052,183.33824281,0.00017999,2]
[359718019,1746276142003,400.0,0.00017999,2]
[359718020,1746276147305,400.0,0.00017999,2]